fUST/lending_fUST_20251223
["ID","MTS","AMOUNT","RATE_DAILY","PERIOD"]
[399520649,1766433032547,-1043.77747175,0.00010758,2]
[399520651,1766433032567,-290.8,0.00010758,2]
[399520682,1766433038494,-711.23091884,0.00010758,2]
[399520689,1766433038548,-4382.5499789,0.00010758,2]
[399520691,1766433038559,-3687.66744814,0.00010758,2]
[399520696,1766433038603,-6445.57283034,0.00010758,2]
[399520698,1766433038614,-3257.86920441,0.00010758,2]
[399520736,1766433044764,-889.42,0.00010758,2]
[399520737,1766433044776,-658.05590408,0.00010758,2]
[399520738,1766433044787,-315.98676429,0.00010758,2]
[399520739,1766433044798,-12299.13298245,0.00010758,2]
[399520740,1766433044818,-11002.25273186,0.00010758,2]
[399520936,1766433046751,-1768.6,0.00010758,2]
[399521564,1766434027458,177.62,0.00014,30]
[399521597,1766434236930,-1200.0,0.0001037,2]
[399521599,1766434236940,-300.0,0.00010371,2]
[399521601,1766434236949,-300.0,0.00010371,2]
[399521603,1766434236959,-300.0,0.00010371,2]
[399521605,1766434236969,-300.0,0.00010371,2]
[399521607,1766434236978,-565.0,0.00010371,2]
[399521609,1766434236987,-180.56268576,0.00010371,2]
[399521611,1766434236996,-164.99270198,0.00010372,2]
[399521613,1766434237006,-351.05627228,0.00010372,2]
[399521615,1766434237015,-20000.0,0.00010372,2]
[399521617,1766434237024,-985.00869324,0.00010379,2]
[399521619,1766434237033,-524.62107622,0.00010398,2]
[399521621,1766434237042,-30870.7308741,0.00010399,2]
[399521623,1766434237053,-2653.06756959,0.00010399,2]
[399521643,1766434238689,-1586.21195227,0.00010399,2]
[399521644,1766434238701,-2352.00076887,0.00010399,2]
[399521645,1766434238713,-446.94503474,0.00010399,2]
[399521646,1766434238724,-12091.04380043,0.00010399,2]
[399521647,1766434238733,-279.56,0.000104,2]
[399521648,1766434238743,-985.00869321,0.00010444,2]
[399521649,1766434238752,-985.00869321,0.00010509,2]
[399521650,1766434238762,-985.00869321,0.00010574,2]
[399521651,1766434238771,-985.00869321,0.00010639,2]
[399521652,1766434238780,-500.0,0.00010652,2]
[399521653,1766434238789,-500.0,0.00010652,2]
[399521654,1766434238799,-500.0,0.00010652,2]
[399521655,1766434238809,-500.0,0.00010652,2]
[399521656,1766434238819,-500.0,0.00010652,2]
[399521657,1766434238828,-500.0,0.00010652,2]
[399521658,1766434238838,-500.0,0.00010652,2]
[399521659,1766434238847,-500.0,0.00010652,2]
[399521660,1766434238856,-500.0,0.00010652,2]
[399521661,1766434238866,-500.0,0.00010652,2]
[399521662,1766434238876,-390.71439394,0.00010652,2]
[399521663,1766434238885,-154.221,0.00010656,2]
[399521664,1766434238894,-157090.74683892,0.00010658,2]
[399521699,1766434240977,-5515.37357475,0.00010658,2]
[399521701,1766434240988,-262.0624995,0.00010658,2]
[399521707,1766434241037,-374.08989249,0.00010658,2]
[399521709,1766434241049,-1059.01307684,0.00010658,2]
[399522066,1766434244646,-1235.17087944,0.00010658,2]
[399522073,1766434244702,-4205.40000002,0.00010658,2]
[399522268,1766434246859,-3098.41447363,0.00010658,2]
[399522271,1766434246871,-680.90757339,0.00010658,2]
[399522273,1766434246883,-1673.08424051,0.00010658,2]
[399522287,1766434247008,-20503.01364468,0.00010658,2]
[399522289,1766434247020,-6856.12175463,0.00010658,2]
[399522292,1766434247033,-569.37999998,0.00010658,2]
[399522720,1766435435842,-1228.67557463,7.797e-05,2]
[399522722,1766435435857,-3408.00017066,7.797e-05,2]
[399522724,1766435435867,-530.0,7.797e-05,2]
[399522726,1766435435878,-1200.0,7.873e-05,2]
[399522728,1766435435887,-300.0,7.874e-05,2]
[399522730,1766435435897,-300.0,7.874e-05,2]
[399522732,1766435435906,-300.0,7.874e-05,2]
[399522734,1766435435916,-300.0,7.874e-05,2]
[399522736,1766435435926,-500.0,7.875e-05,2]
[399522738,1766435435935,-489.97618655,7.875e-05,2]
[399522740,1766435435944,-500.0,7.875e-05,2]
[399522742,1766435435954,-500.0,7.875e-05,2]
[399522744,1766435435963,-500.0,7.875e-05,2]
[399522746,1766435435973,-500.0,7.875e-05,2]
[399522748,1766435435982,-500.0,7.875e-05,2]
[399522750,1766435435991,-500.0,7.875e-05,2]
[399522753,1766435436000,-518.30293849,7.875e-05,2]
[399522756,1766435436009,-500.0,7.875e-05,2]
[399522759,1766435436018,-500.0,7.875e-05,2]
[399522761,1766435436027,-500.0,7.875e-05,2]
[399522763,1766435436036,-500.0,7.875e-05,2]
[399522765,1766435436046,-542.86997065,7.875e-05,2]
[399522767,1766435436055,-500.0,7.875e-05,2]
[399522768,1766435436065,-500.0,7.875e-05,2]
[399522770,1766435436075,-205.06249148,7.875e-05,2]
[399522772,1766435436084,-500.0,7.875e-05,2]
[399522773,1766435436094,-500.0,7.875e-05,2]
[399522774,1766435436103,-500.0,7.875e-05,2]
[399522775,1766435436113,-500.0,7.875e-05,2]
[399522776,1766435436122,-500.0,7.875e-05,2]
[399522777,1766435436132,-500.0,7.875e-05,2]
[399522778,1766435436143,-500.0,7.875e-05,2]
[399522779,1766435436152,-500.0,7.875e-05,2]
[399522780,1766435436163,-500.0,7.875e-05,2]
[399522781,1766435436173,-500.0,7.875e-05,2]
[399522782,1766435436182,-500.0,7.875e-05,2]
[399522783,1766435436192,-500.0,7.875e-05,2]
[399522784,1766435436202,-500.0,7.875e-05,2]
[399522785,1766435436213,-500.0,7.875e-05,2]
[399522786,1766435436222,-500.0,7.875e-05,2]
[399522787,1766435436232,-500.0,7.875e-05,2]
[399522788,1766435436241,-500.0,7.875e-05,2]
[399522789,1766435436250,-500.0,7.875e-05,2]
[399522790,1766435436261,-500.0,7.875e-05,2]
[399522791,1766435436270,-246.83504477,7.875e-05,2]
[399522792,1766435436281,-2238.80000545,7.875e-05,2]
[399522793,1766435436294,-913.68375377,7.875e-05,2]
[399522794,1766435436305,-636.48386766,7.875e-05,2]
[399522795,1766435436322,-1917.46604006,7.875e-05,2]
[399522830,1766435437778,-9891.4748693,7.875e-05,2]
[399522835,1766435437829,-1683.85927211,7.875e-05,2]
[399522841,1766435437859,-342.33029847,7.875e-05,2]
[399522843,1766435437872,-1583.79013717,7.875e-05,2]
[399522845,1766435437883,-25109.34333418,7.875e-05,2]
[399522847,1766435437892,-2480.17607334,7.876e-05,2]
[399523072,1766435440072,-2519.82392666,7.876e-05,2]
[399523074,1766435440082,-187.65588851,7.996e-05,2]
[399523076,1766435440093,-464.53847676,8.034e-05,2]
[399523078,1766435440102,-150.0,8.076e-05,2]
[399523080,1766435440112,-2705.49475237,8.097e-05,2]
[399523082,1766435440123,-264.12583363,8.097e-05,2]
[399523241,1766435443812,-4886.56016067,8.097e-05,2]
[399523242,1766435443826,-694.0900242,8.097e-05,2]
[399523256,1766435445995,-83642.4081812,8.097e-05,2]
[399523493,1766436600827,10000.01,6.958e-05,2]
[399523494,1766436604176,-1077.48957306,6.958e-05,2]
[399523495,1766436606182,-755.71404838,6.958e-05,2]
[399523496,1766436608247,-267.73658877,6.958e-05,2]
[399523497,1766436609746,-171.98193463,6.958e-05,2]
[399523498,1766436615048,-79.2814766,6.958e-05,2]
[399523499,1766436615070,-197.08799877,6.958e-05,2]
[399523500,1766436616543,-347.8577275,6.958e-05,2]
[399523501,1766436620214,2039.64919979,6.892e-05,2]
[399523502,1766436621517,-647.20197421,6.958e-05,2]
[399523503,1766436624828,-243.15425436,6.958e-05,2]
[399523504,1766436628559,-206.85711215,6.958e-05,2]
[399523505,1766436630626,-267.72911928,6.958e-05,2]
[399523546,1766436632728,-1000.0,6.958e-05,2]
[399523547,1766436632740,-632.1633785,6.958e-05,2]
[399523548,1766436632782,-243.77411025,6.958e-05,2]
[399523549,1766436636742,-226.03353956,6.958e-05,2]
[399523556,1766436637977,-321.7398901,6.958e-05,2]
[399523559,1766436637991,-6841.24114458,6.958e-05,2]
[399523561,1766436638002,-190.2015735,7.087e-05,2]
[399523564,1766436638013,-3536.3915299,7.184e-05,2]
[399523566,1766436638029,-300.0,7.228e-05,2]
[399523568,1766436638041,-300.0,7.228e-05,2]
[399523571,1766436638054,-300.0,7.228e-05,2]
[399523573,1766436638066,-300.0,7.228e-05,2]
[399523575,1766436638077,-300.0,7.228e-05,2]
[399523577,1766436638089,-300.0,7.228e-05,2]
[399523579,1766436638103,-300.0,7.228e-05,2]
[399523582,1766436638120,-300.0,7.228e-05,2]
[399523584,1766436638132,-300.0,7.228e-05,2]
[399523586,1766436638143,-300.0,7.228e-05,2]
[399523588,1766436638157,-300.0,7.228e-05,2]
[399523590,1766436638169,-300.0,7.228e-05,2]
[399523592,1766436638182,-300.0,7.228e-05,2]
[399523594,1766436638194,-300.0,7.228e-05,2]
[399523597,1766436638206,-300.0,7.228e-05,2]
[399523599,1766436638217,-183.90277074,7.364e-05,2]
[399523601,1766436638228,-154.221,7.935e-05,2]
[399523603,1766436638240,-416.36942532,7.996e-05,2]
[399523605,1766436638251,-154585.57078227,7.997e-05,2]
[399523608,1766436638270,-4023.56816462,7.997e-05,2]
[399523794,1766436640086,-18165.2917058,7.997e-05,2]
[399523799,1766436640145,-4731.89945755,7.997e-05,2]
[399523802,1766436640166,-721.77980252,7.997e-05,2]
[399523804,1766436640181,-1428.66,7.997e-05,2]
[399524099,1766436643154,-911.53219827,7.997e-05,2]
[399524393,1766436646034,-2182.60783731,7.917e-05,2]
[399524395,1766436646043,-42161.96885461,7.997e-05,2]
[399525327,1766436866708,5000.0,6.892e-05,2]
[399525328,1766436873388,-180.22471533,6.957e-05,2]
[399525329,1766436889473,4862.13092694,6.957e-05,2]
[399525330,1766436934568,1097.06527589,6.957e-05,2]
[399525331,1766437235668,3680.36436651,6.28e-05,2]
[399525332,1766437235693,534.87541539,6.28e-05,2]
[399525405,1766437832101,-875.89904586,7.09e-05,2]
[399525407,1766437832112,-181.10095414,7.09e-05,2]
[399525409,1766437832122,-300.0,7.093e-05,2]
[399525411,1766437832131,-86.35101437,7.093e-05,2]
[399525418,1766437832181,-213.64898563,7.093e-05,2]
[399525420,1766437832191,-1200.0,7.093e-05,2]
[399525422,1766437832200,-152.462,7.094e-05,2]
[399525424,1766437832210,-298.36537549,7.094e-05,2]
[399525426,1766437832221,-2.19712356,7.094e-05,2]
[399525428,1766437832230,-171.42999674,7.094e-05,2]
[399525430,1766437832240,-276.66402073,7.094e-05,2]
[399525432,1766437832249,-500.0,7.094e-05,2]
[399525434,1766437832259,-335.36699317,7.094e-05,2]
[399525436,1766437832268,-416.31500497,7.094e-05,2]
[399525438,1766437832277,-420.52942447,7.094e-05,2]
[399525440,1766437832287,-300.0,7.095e-05,2]
[399525442,1766437832296,-300.0,7.095e-05,2]
[399525445,1766437832306,-300.0,7.095e-05,2]
[399525447,1766437832326,-300.0,7.095e-05,2]
[399525449,1766437832336,-300.0,7.095e-05,2]
[399525451,1766437832346,-300.0,7.095e-05,2]
[399525453,1766437832355,-300.0,7.095e-05,2]
[399525455,1766437832364,-300.0,7.095e-05,2]
[399525457,1766437832373,-300.0,7.095e-05,2]
[399525459,1766437832382,-300.0,7.095e-05,2]
[399525461,1766437832392,-300.0,7.095e-05,2]
[399525463,1766437832401,-300.0,7.095e-05,2]
[399525465,1766437832412,-300.0,7.095e-05,2]
[399525467,1766437832423,-300.0,7.095e-05,2]
[399525469,1766437832433,-300.0,7.095e-05,2]
[399525471,1766437832443,-11803.17169857,7.095e-05,2]
[399525516,1766437838210,-24092.4375378,7.095e-05,2]
[399525522,1766437838264,-920.0098551,7.095e-05,2]
[399525524,1766437838276,-625.58105007,7.095e-05,2]
[399525713,1766437840373,-12558.79985843,7.095e-05,2]
[399525715,1766437840382,-775.75441622,7.996e-05,2]
[399525717,1766437840392,-345.0,7.997e-05,2]
[399525719,1766437840401,-345.0,7.997e-05,2]
[399525721,1766437840411,-345.0,7.997e-05,2]
[399525723,1766437840423,-345.0,7.997e-05,2]
[399525725,1766437840433,-152.0,7.997e-05,2]
[399525727,1766437840442,-345.0,7.997e-05,2]
[399525729,1766437840452,-152.0,7.997e-05,2]
[399525731,1766437840462,-345.0,7.997e-05,2]
[399525733,1766437840473,-152.0,7.997e-05,2]
[399525735,1766437840482,-345.0,7.997e-05,2]
[399525737,1766437840493,-153.01361162,7.997e-05,2]
[399525739,1766437840503,-345.0,7.997e-05,2]
[399525741,1766437840512,-345.0,7.997e-05,2]
[399525743,1766437840522,-345.0,7.997e-05,2]
[399525745,1766437840531,-345.0,7.997e-05,2]
[399525747,1766437840541,-345.0,7.997e-05,2]
[399525749,1766437840551,-345.0,7.997e-05,2]
[399525751,1766437840561,-345.0,7.997e-05,2]
[399525753,1766437840571,-287.67490651,7.997e-05,2]
[399525756,1766437840591,-57.32509349,7.997e-05,2]
[399525758,1766437840601,-345.0,7.997e-05,2]
[399525760,1766437840610,-345.0,7.997e-05,2]
[399525762,1766437840620,-345.0,7.997e-05,2]
[399525765,1766437840630,-345.0,7.997e-05,2]
[399525768,1766437840639,-345.0,7.997e-05,2]
[399525771,1766437840654,-345.0,7.997e-05,2]
[399525773,1766437840664,-345.0,7.997e-05,2]
[399525775,1766437840674,-345.0,7.997e-05,2]
[399525777,1766437840683,-345.0,7.997e-05,2]
[399525779,1766437840693,-345.0,7.997e-05,2]
[399525781,1766437840704,-345.0,7.997e-05,2]
[399525783,1766437840713,-345.0,7.997e-05,2]
[399525785,1766437840723,-345.0,7.997e-05,2]
[399525787,1766437840732,-345.0,7.997e-05,2]
[399525789,1766437840742,-345.0,7.997e-05,2]
[399525791,1766437840751,-345.0,7.997e-05,2]
[399525793,1766437840760,-345.0,7.997e-05,2]
[399525795,1766437840770,-345.0,7.997e-05,2]
[399525797,1766437840780,-345.0,7.997e-05,2]
[399525799,1766437840789,-345.0,7.997e-05,2]
[399525801,1766437840799,-345.0,7.997e-05,2]
[399525803,1766437840809,-345.0,7.997e-05,2]
[399525805,1766437840819,-345.0,7.997e-05,2]
[399525808,1766437840828,-345.0,7.997e-05,2]
[399525810,1766437840837,-345.0,7.997e-05,2]
[399525812,1766437840847,-345.0,7.997e-05,2]
[399525814,1766437840856,-152.57885444,7.997e-05,2]
[399525816,1766437840866,-278.32312205,8.063e-05,2]
[399525818,1766437840876,-600.0,8.156e-05,2]
[399525820,1766437840885,-302.28767332,8.158e-05,2]
[399525822,1766437840895,-256.02726029,8.219e-05,2]
[399525824,1766437840905,-500.0,8.219e-05,2]
[399525826,1766437840916,-150.0,8.268e-05,2]
[399525828,1766437840926,-2281.53246392,8.344e-05,2]
[399525830,1766437840935,-150.0,8.676e-05,2]
[399525832,1766437840945,-2281.53246392,8.733e-05,2]
[399525834,1766437840954,-2281.53246392,8.899e-05,2]
[399525836,1766437840963,-720.0,8.971e-05,2]
[399525838,1766437840973,-2281.53246395,9.063e-05,2]
[399525840,1766437840982,-208.41186081,9.09e-05,2]
[399525842,1766437840992,-296.29231876,9.608e-05,2]
[399525844,1766437841002,-338.61979287,9.608e-05,2]
[399525846,1766437841011,-529.09342636,9.608e-05,2]
[399525848,1766437841021,-272.19313671,9.608e-05,2]
[399525850,1766437841030,-311.07787053,9.608e-05,2]
[399525852,1766437841039,-486.0591727,9.608e-05,2]
[399525854,1766437841049,-864.0,9.869e-05,2]
[399525856,1766437841058,-633.0,9.903e-05,2]
[399525858,1766437841068,-1369.853,9.903e-05,2]
[399525860,1766437841077,-2160.0,9.903e-05,2]
[399525862,1766437841088,-416.0,9.903e-05,2]
[399525864,1766437841098,-234.73814175,9.943e-05,2]
[399525866,1766437841108,-232.61233951,0.0001,2]
[399525868,1766437841117,-604.8175746,0.000102,2]
[399525870,1766437841127,-373.46388613,0.00010236,2]
[399525872,1766437841140,-231.35368845,0.00010236,2]
[399525875,1766437841154,-440.4256799,0.00010273,2]
[399525888,1766437841280,-130.23146942,0.00010273,2]
[399525890,1766437841292,-34.16042526,0.00010273,2]
[399525891,1766437841301,-496.47127164,0.000103,2]
[399525893,1766437841311,-3000.0,0.000103,2]
[399525895,1766437841320,-2088.20542003,0.000103,2]
[399525897,1766437841338,-911.79457997,0.000103,2]
[399525898,1766437841347,-300.23052158,0.000103,2]
[399526116,1766437844266,-331.83631194,0.000103,2]
[399526301,1766437846295,-2200.26435504,0.000103,2]
[399526302,1766437846305,-20000.0,0.000103,2]
[399526303,1766437846314,-1490.35436238,0.000103,2]
[399526304,1766437846323,-1000.0,0.000103,2]
[399526305,1766437846332,-1000.0,0.000103,2]
[399526306,1766437846341,-1000.0,0.000103,2]
[399526307,1766437846351,-1000.0,0.000103,2]
[399526308,1766437846359,-185.19777181,0.000103,2]
[399526309,1766437846368,-604.81757458,0.00010309,2]
[399526310,1766437846377,-604.81757458,0.00010345,2]
[399526311,1766437846386,-8169.33162243,0.0001036,2]
[399526312,1766437846397,-16059.40024558,0.0001036,2]
[399527415,1766439032214,-260.34052196,9.608e-05,2]
[399527417,1766439032223,-178.37929692,9.624e-05,2]
[399527419,1766439032233,-3119.75117198,9.64e-05,2]
[399527421,1766439032242,-468.61293952,9.725e-05,2]
[399527423,1766439032252,-833.08967026,9.958e-05,2]
[399527425,1766439032261,-186.29158513,0.00010066,2]
[399527428,1766439032271,-6978.01260631,0.00010067,2]
[399527431,1766439032282,-13021.72800526,0.00010067,2]
[399527434,1766439032291,-749.8087094,0.000101,2]
[399527436,1766439032300,-384.72017584,0.00010153,2]
[399527439,1766439032309,-179.21908221,0.00010153,2]
[399527442,1766439032318,-544.56193379,0.00010154,2]
[399527445,1766439032327,-544.56193377,0.00010157,2]
[399527448,1766439032337,-544.56193377,0.0001016,2]
[399527452,1766439032346,-300.0,0.00010162,2]
[399527455,1766439032355,-1200.0,0.00010162,2]
[399527458,1766439032365,-544.56193377,0.00010163,2]
[399527460,1766439032374,-10202.87212627,0.00010163,2]
[399527484,1766439032600,-14737.41067775,0.00010163,2]
[399527493,1766439038357,-15982.82402967,0.00010163,2]
[399527494,1766439038368,-587.88689563,0.00010163,2]
[399527496,1766439038415,-4785.32908402,0.00010163,2]
[399527688,1766439040537,-1119.50542007,0.00010163,2]
[399527689,1766439040549,-2584.17176659,0.00010163,2]
[399527690,1766439040559,-544.56193377,0.00010166,2]
[399527691,1766439040568,-770.57314282,0.00010187,4]
[399527692,1766439040577,-1300.40090717,0.00010191,2]
[399527693,1766439040587,-2773.5679052,0.00010201,2]
[399527694,1766439040596,-235404.68832032,0.0001026,2]
[399527695,1766439040610,-1795.85138465,0.0001026,2]
[399527696,1766439040622,-37427.57979903,0.0001026,2]
[399527697,1766439040643,-8363.7244859,0.0001026,2]
[399527698,1766439040653,-304.127,0.0001026,2]
[399527937,1766439043466,-1318.70184405,0.0001026,2]
[399527938,1766439043481,-45797.85780735,0.0001026,2]
[399527939,1766439043492,-372.10414964,0.0001026,2]
[399527947,1766439043579,-10313.11202671,0.0001026,2]
[399527949,1766439043590,-4982.51510136,0.0001026,2]
[399528019,1766439046360,-25826.29,0.0001026,2]
[399528020,1766439046420,-709.96952181,0.0001026,2]
[399528021,1766439046431,-6791.94900133,0.0001026,2]
[399528022,1766439046533,-6929.59063587,0.0001026,2]
[399528023,1766439046544,-2583.70658444,0.0001026,2]
[399528024,1766439604064,559.0,9.911e-05,2]
[399528026,1766440170024,16501.0,9.812e-05,2]
[399528119,1766440233290,-183.56609754,9.811e-05,2]
[399528120,1766440233299,-292562.52652892,9.812e-05,2]
[399528121,1766440233310,-1331.21619743,9.812e-05,2]
[399528122,1766440233321,-398.74315297,9.812e-05,2]
[399528123,1766440233341,-335.1549635,9.812e-05,2]
[399528124,1766440233353,-385.80856207,9.812e-05,2]
[399528158,1766440238491,-163.3440736,9.811e-05,2]
[399528160,1766440238501,-518.12778331,9.811e-05,2]
[399528161,1766440238511,-500.0,9.811e-05,2]
[399528163,1766440238521,-688485.55059511,9.812e-05,2]
[399528165,1766440238531,-184.53710176,9.912e-05,2]
[399528166,1766440238540,-905.8597,9.912e-05,2]
[399528168,1766440238549,-20482.46884362,9.912e-05,2]
[399528170,1766440238559,-2160.0,9.912e-05,2]
[399528171,1766440238568,-632.0,9.912e-05,2]
[399528172,1766440238577,-1362.0,9.912e-05,2]
[399528173,1766440238586,-50000.0,9.912e-05,2]
[399528174,1766440238596,-1000.0,9.967e-05,2]
[399528175,1766440238605,-1000.0,9.967e-05,2]
[399528176,1766440238615,-15599.99,9.967e-05,2]
[399528177,1766440238625,-496.47127164,9.967e-05,2]
[399528178,1766440238634,-1000.0,9.967e-05,2]
[399528179,1766440238643,-1000.0,9.967e-05,2]
[399528180,1766440238653,-1000.0,9.967e-05,2]
[399528181,1766440238662,-999.99,9.967e-05,2]
[399528182,1766440238672,-2674.60743027,9.967e-05,2]
[399528183,1766440238681,-48775.84495682,0.00010105,2]
[399528184,1766440238698,-590.20098587,0.00010105,2]
[399528185,1766440238710,-33080.77031709,0.00010105,2]
[399528186,1766440238720,-31713.8389208,0.00010241,2]
[399528187,1766440238730,-7076.3139573,0.00010241,2]
[399528188,1766440238740,-3362.8781227,0.00010241,2]
[399528189,1766440238750,-1111.39254727,0.0001026,2]
[399528190,1766440238760,-426.18111212,0.0001026,2]
[399528191,1766440238770,-225.23333106,0.0001026,2]
[399528192,1766440238779,-767.12600182,0.0001026,2]
[399528193,1766440238789,-405.41999591,0.0001026,2]
[399528194,1766440238799,-9152.71696555,0.0001036,2]
[399528202,1766440240757,-17762.37537049,0.0001036,2]
[399528208,1766440245614,-842.0,0.0001036,2]
[399528257,1766441431618,-2000.0,8.099e-05,2]
[399528260,1766441431630,-690.31217635,8.099e-05,2]
[399528262,1766441431640,-5000.0,8.181e-05,2]
[399528264,1766441431650,-180.84635973,8.306e-05,2]
[399528266,1766441431660,-1200.0,8.6e-05,2]
[399528268,1766441431669,-300.0,9.04e-05,2]
[399528270,1766441431678,-300.0,9.041e-05,2]
[399528272,1766441431687,-300.0,9.041e-05,2]
[399528274,1766441431696,-2767.993809,9.047e-05,2]
[399528276,1766441431705,-25353.13601199,9.712e-05,2]
[399528326,1766441437616,-186.69933198,9.711e-05,2]
[399528327,1766441437626,-451.90763075,9.711e-05,2]
[399528328,1766441437635,-15011.39303737,9.712e-05,2]
[399528329,1766441437734,-72391.16867295,9.712e-05,2]
[399528330,1766441437746,-745.54078512,9.712e-05,2]
[399528331,1766441437756,-216570.79341826,9.712e-05,2]
[399528335,1766441439898,-5000.0,9.614e-05,2]
[399528337,1766441439908,-3823.6,9.712e-05,2]
[399528339,1766441439954,-1029.00146496,9.712e-05,2]
[399528353,1766441443033,-13018.84619154,9.712e-05,2]
[399528376,1766441445919,-305015.86515474,9.712e-05,2]
[399528377,1766441446034,-5164.72174361,9.712e-05,2]
[399528379,1766442273694,200.0,0.0001,10]
[399528380,1766442273989,315.39,0.0001,10]
[399528421,1766442631954,-1200.0,9.143e-05,2]
[399528422,1766442631964,-1369.98346172,9.144e-05,2]
[399528423,1766442631978,-1961.6034078,9.144e-05,2]
[399528424,1766442631990,-1668.41313048,9.144e-05,2]
[399528425,1766442632000,-548.0,9.144e-05,2]
[399528426,1766442632010,-1934.91789012,9.194e-05,2]
[399528427,1766442632023,-155.90976943,9.194e-05,2]
[399528428,1766442632033,-547.8084511,9.194e-05,2]
[399528429,1766442632049,-557.17735198,9.194e-05,2]
[399528430,1766442632059,-300.0,9.259e-05,2]
[399528431,1766442632069,-300.0,9.259e-05,2]
[399528432,1766442632079,-300.0,9.259e-05,2]
[399528433,1766442632093,-300.0,9.259e-05,2]
[399528434,1766442632104,-844.87264802,9.26e-05,2]
[399528487,1766442640183,-518.90691076,9.26e-05,2]
[399528488,1766442640193,-2130.9055606,9.26e-05,2]
[399528489,1766442640201,-2768.90928217,9.26e-05,2]
[399528490,1766442640225,-299.59472509,9.26e-05,2]
[399528491,1766442640234,-720.74665939,9.26e-05,2]
[399528492,1766442640244,-1126.1666553,9.26e-05,2]
[399528493,1766442640253,-1621.67998363,9.26e-05,2]
[399528494,1766442640263,-187.26951643,9.26e-05,2]
[399528495,1766442640272,-1200.0,9.611e-05,2]
[399528496,1766442640281,-444.15779689,9.611e-05,2]
[399528497,1766442640290,-580.37389515,9.612e-05,2]
[399528506,1766442642907,-7156.0,9.612e-05,2]
[399528518,1766442645901,-45301.13675463,9.612e-05,2]
[399528520,1766442645918,-677.35,9.612e-05,2]
[399528535,1766442806541,-200.0,0.00021869,120]
[399528536,1766442807446,-200.0,0.0002242,120]
[399528537,1766442808161,-200.0,0.00023014,120]
[399528538,1766442808893,-152.08292409,0.0002364,120]
[399528539,1766442808916,-47.91707591,0.0002364,120]
[399528540,1766442809678,-139.12133083,0.0002364,120]
[399528541,1766442809703,-60.87866917,0.00023874,120]
[399528542,1766442810790,-140.40805846,0.00023874,120]
[399528543,1766442810817,-59.59194154,0.00023956,120]
[399528544,1766442811571,-140.40805846,0.00023956,120]
[399528545,1766442811595,-60.87866918,0.00024072,120]
[399528546,1766442812307,-139.12133082,0.00024072,120]
[399528547,1766442812328,-60.87866918,0.00024105,120]
[399528548,1766442813335,-140.40805846,0.00024105,120]
[399528549,1766442813360,-59.59194154,0.00024397,120]
[399528550,1766442814075,-140.40805846,0.00024397,120]
[399528551,1766442814099,-59.59194154,0.00024406,120]
[399528552,1766442815241,-140.40805846,0.00024406,120]
[399528553,1766442815264,-200.0,0.00024454,120]
[399528554,1766442817055,-200.0,0.00024658,120]
[399528557,1766442849606,5000.0,0.0001,10]
[399528558,1766442865481,-200.0,0.00024658,120]
[399528559,1766442866143,-200.0,0.00024658,120]
[399528560,1766442866811,-200.0,0.00024658,120]
[399528561,1766442868181,-200.0,0.00024658,120]
[399528562,1766442868926,-200.0,0.00024658,120]
[399528563,1766442870738,-200.0,0.00024658,120]
[399528564,1766442871010,5000.0,0.0001,10]
[399528565,1766442932272,199.0,0.0002206,120]
[399528566,1766443083579,159.21,4.995e-05,2]
[399528567,1766443083867,159.19,4.995e-05,2]
[399528568,1766443108430,-200.0,0.00024658,120]
[399528569,1766443108592,-200.0,0.00024658,120]
[399528570,1766443108773,-199.0,0.00024658,120]
[399528571,1766443108782,-1.0,0.0002485,120]
[399528572,1766443108918,-199.0,0.0002485,120]
[399528573,1766443108928,-1.0,0.00025094,120]
[399528574,1766443109055,-199.0,0.00025094,120]
[399528575,1766443109272,-200.0,0.00025257,120]
[399528576,1766443212380,731.63,0.00024658,120]
[399528606,1766443831942,-150.0,8.396e-05,2]
[399528608,1766443831952,-538.0,8.396e-05,2]
[399528610,1766443831962,-193.53747889,8.487e-05,2]
[399528612,1766443831971,-150.0,8.837e-05,2]
[399528614,1766443831980,-150.0,9.156e-05,2]
[399528616,1766443831990,-300.0,9.511e-05,2]
[399528618,1766443832000,-298.0,9.511e-05,2]
[399528622,1766443832019,-1200.0,9.511e-05,2]
[399528624,1766443832032,-310.91045783,9.511e-05,2]
[399528626,1766443832042,-4509.55010665,9.512e-05,2]